bitfinex/quotes_ETHUSD_20230113
["timestamp","ask_amount","ask_price","bid_price","bid_amount"]
[1673639613295,0.14823141,1419.9,1419.8,27.58230799]
[1673639616743,0.14823141,1419.9,1419.8,20.53906799]
[1673639617066,0.14823141,1419.9,1419.8,17.75881272]
[1673639618772,0.14823141,1419.9,1419.8,24.80205272]
[1673639619873,0.14823141,1419.9,1419.8,24.70205272]
[1673639620448,0.14823141,1419.9,1419.8,3.57233272]
[1673639620666,0.14823141,1419.9,1419.7,3.066]
[1673639620667,1.23123141,1419.9,1419.7,3.066]
[1673639620994,16.75840986,1419.9,1419.7,3.0]
[1673639621190,18.40774083,1419.9,1419.6,8.3282]
[1673639621492,17.32474083,1419.9,1419.6,8.3282]
[1673639621706,17.32474083,1419.9,1419.6,0.066]
[1673639621863,17.32474083,1419.9,1419.5,16.99079]
[1673639621864,1.73247408,1419.8,1419.5,25.30589]
[1673639622248,2.78723973,1419.8,1419.5,28.91222272]
[1673639622540,1.73247408,1419.8,1419.5,35.95695272]
[1673639623137,4.3705707,1419.8,1419.5,0.066]
[1673639623356,4.3705707,1419.8,1419.2,1.11406584]
[1673639623357,2.77506565,1419.7,1419.2,1.11406584]
[1673639623654,7.32192657,1419.6,1419.2,4.65439856]
[1673639623869,7.38792657,1419.6,1419.2,4.65439856]
[1673639624096,14.43234657,1419.6,1419.2,6.22799486]
[1673639624321,14.43234657,1419.6,1419.2,6.29399486]
[1673639624890,7.38792657,1419.6,1419.2,6.29399486]
[1673639625101,0.73879266,1419.5,1419.2,6.29199486]
[1673639625350,0.73879266,1419.5,1419.2,13.34014486]
[1673639625611,0.73879266,1419.5,1419.2,6.29399486]
[1673639625764,0.73879266,1419.5,1419.2,2.68766214]
[1673639625978,7.78358266,1419.5,1419.1,43.04708798]
[1673639626189,1.33319266,1419.5,1419.2,1.74794119]
[1673639626436,1.33319266,1419.5,1419.2,11.27049055]
[1673639626437,1.26719266,1419.5,1419.2,11.27049055]
[1673639626637,1.26719266,1419.5,1419.2,9.58854936]
[1673639627255,8.31193266,1419.5,1419.2,2.54240936]
[1673639627441,1.33319266,1419.5,1419.2,9.52254936]
[1673639627699,0.5284,1419.5,1419.2,27.28732208]
[1673639628038,0.80590657,1419.6,1419.2,27.28732208]
[1673639628463,0.80590657,1419.6,1419.2,20.24110208]
[1673639628749,1.86067222,1419.6,1419.2,20.24110208]
[1673639629048,8.90490222,1419.6,1419.2,20.24110208]
[1673639629214,0.89049022,1419.5,1419.2,20.24110208]
[1673639629797,26.76144587,1419.5,1419.2,0.066]
[1673639629969,24.32744587,1419.5,1419.0,4.04806584]
[1673639630215,2.43274459,1419.4,1419.0,3.0]
[1673639630374,11.82131684,1419.5,1419.0,4.04806584]
[1673639630564,0.5285,1419.4,1419.0,12.5239602]
[1673639630773,0.5285,1419.4,1419.0,13.63802604]
[1673639631035,7.04572,1419.3,1419.0,13.63802604]
[1673639631255,7.11172,1419.3,1419.0,13.63802604]
[1673639631406,0.066,1419.3,1419.0,13.63802604]
[1673639631627,1.17237028,1419.3,1419.1,1.74804046]
[1673639631823,1.17237028,1419.3,1419.0,27.73244604]
[1673639632458,1.17237028,1419.3,1419.0,26.6843802]
[1673639632674,1.17237028,1419.3,1419.0,27.73244604]
[1673639633213,1.17237028,1419.3,1419.0,19.6371702]
[1673639633755,1.17237028,1419.3,1419.0,24.20762]
[1673639633923,1.17237028,1419.3,1419.0,26.6843802]
[1673639634868,8.21810028,1419.3,1419.0,26.6843802]
[1673639635138,1.23837028,1419.3,1419.0,26.6843802]
[1673639635362,1.17237028,1419.3,1419.0,26.6843802]
[1673639636581,1.17237028,1419.3,1419.0,24.20762]
[1673639638688,15.16205,1419.4,1419.0,24.20762]
[1673639640369,15.16205,1419.4,1419.0,26.68062013]
[1673639640789,0.066,1419.4,1419.1,3.60633272]
[1673639641009,8.1471,1419.5,1419.2,3.60633272]
[1673639641216,8.1471,1419.5,1419.2,19.46816699]
[1673639641217,8.2131,1419.5,1419.2,19.46816699]
[1673639641499,8.2131,1419.5,1419.2,19.53416699]
[1673639641684,8.2131,1419.5,1419.2,12.48808699]
[1673639641859,8.2131,1419.5,1419.2,19.53430699]
[1673639642060,15.25787,1419.5,1419.2,12.48808699]
[1673639642740,8.2131,1419.5,1419.2,12.48808699]
[1673639643263,8.2131,1419.5,1419.2,19.53430699]
[1673639643409,8.2131,1419.5,1419.2,12.48808699]
[1673639643618,15.25788,1419.5,1419.2,12.48808699]
[1673639644453,15.25788,1419.5,1419.2,19.53430699]
[1673639644454,8.2131,1419.5,1419.2,19.53430699]
[1673639644621,8.2131,1419.5,1419.2,26.58052699]
[1673639644930,8.2131,1419.5,1419.3,2.6580527]
[1673639645102,8.2131,1419.5,1419.2,26.58052699]
[1673639645328,0.066,1419.5,1419.3,3.60633272]
[1673639645520,0.066,1419.6,1419.4,3.60633272]
[1673639645722,8.0342,1419.7,1419.4,24.74202272]
[1673639645928,0.5284,1419.6,1419.4,25.16865599]
[1673639646183,8.0342,1419.7,1419.4,25.16865599]
[1673639646366,8.0342,1419.7,1419.5,16.6059756]
[1673639646580,0.066,1419.7,1419.5,14.15511]
[1673639646787,30.9643,1419.8,1419.5,21.19984]
[1673639646979,0.5943,1419.8,1419.5,24.80617272]
[1673639647296,0.5283,1419.8,1419.5,24.80617272]
[1673639648252,19.45259706,1419.9,1419.5,24.80617272]
[1673639648505,19.45259706,1419.9,1419.5,28.02732732]
[1673639648700,26.49547706,1419.9,1419.5,28.02732732]
[1673639649252,42.29564388,1419.9,1419.5,0.066]
[1673639649463,1.05476565,1419.8,1419.4,0.066]
[1673639649667,1.05476565,1419.8,1419.4,7.04518]
[1673639649864,1.05476565,1419.8,1419.4,7.11118]
[1673639649865,2.9262808,1419.8,1419.4,7.11118]
[1673639650380,2.9262808,1419.8,1419.4,14.15641]
[1673639650551,17.0132008,1419.8,1419.4,14.15641]
[1673639650773,17.0792008,1419.8,1419.4,14.15641]
[1673639650977,1.70792008,1419.7,1419.4,14.15641]
[1673639651207,0.066,1419.8,1419.4,17.76274272]
[1673639651430,29.19680803,1419.9,1419.6,21.13239]
[1673639651431,17.86953141,1419.9,1419.6,21.13239]
[1673639651627,8.10323141,1419.9,1419.6,24.80472272]
[1673639651871,9.15799706,1419.9,1419.6,17.76059272]
[1673639652712,9.15799706,1419.9,1419.6,10.71646272]
[1673639652944,9.15799706,1419.9,1419.6,0.066]
[1673639652945,10.77029437,1419.9,1419.6,0.066]
[1673639653079,34.53668099,1419.9,1419.5,7.9497]
[1673639653296,34.66775257,1419.9,1419.5,7.9497]
[1673639653499,7.04374,1419.7,1419.5,7.9497]
[1673639653765,7.04374,1419.7,1419.5,0.066]
[1673639653766,14.15348,1419.7,1419.5,0.066]
[1673639653959,14.15348,1419.7,1419.4,3.0]
[1673639654134,0.066,1419.7,1419.4,16.15130272]
[1673639654396,21.19652,1419.8,1419.4,13.71730272]
[1673639654703,7.10925,1419.8,1419.4,30.98588218]
[1673639654918,0.066,1419.8,1419.4,30.98588218]
[1673639655088,16.20098706,1419.9,1419.4,30.98588218]
[1673639655311,16.20098706,1419.9,1419.6,7.04413]
[1673639655543,9.15799706,1419.9,1419.6,7.11013]
[1673639655728,10.74132803,1419.9,1419.6,14.15436]
[1673639656387,10.74132803,1419.9,1419.6,10.71646272]
[1673639656703,10.74132803,1419.9,1419.6,24.80492272]
[1673639657108,10.74132803,1419.9,1419.6,17.76069272]
[1673639657603,10.74132803,1419.9,1419.6,24.80492272]
[1673639658023,10.74132803,1419.9,1419.6,17.76069272]
[1673639658462,17.78408803,1419.9,1419.6,17.76069272]
[1673639658895,10.74132803,1419.9,1419.6,17.76069272]
[1673639659753,10.74132803,1419.9,1419.6,24.80492272]
[1673639660448,10.74132803,1419.9,1419.7,3.60633272]
[1673639660449,1.05476565,1419.8,1419.7,3.60633272]
[1673639660669,9.82913803,1419.9,1419.7,3.6029299]
[1673639660858,16.93814803,1419.9,1419.7,3.6029299]
[1673639661329,10.02620961,1419.9,1419.7,3.6029299]
[1673639661532,9.89513803,1419.9,1419.7,3.6029299]
[1673639662115,13.29698379,1419.9,1419.6,7.10999]
[1673639662372,2.63809662,1419.8,1419.6,0.066]
[1673639662535,14.08748,1419.7,1419.5,7.6866]
[1673639662805,14.08748,1419.7,1419.5,3.67233272]
[1673639662806,21.19722,1419.7,1419.5,3.67233272]
[1673639662959,21.19722,1419.7,1419.5,3.60633272]
[1673639663169,23.58075166,1419.7,1419.5,3.60633272]
[1673639663923,24.63551731,1419.7,1419.5,3.60633272]
[1673639664132,23.58075166,1419.7,1419.5,3.60633272]
[1673639664349,24.63551731,1419.7,1419.5,3.60633272]
[1673639664743,16.53701166,1419.7,1419.5,3.60633272]
[1673639665009,9.49327166,1419.7,1419.5,3.60633272]
[1673639666283,16.53701166,1419.7,1419.5,3.60633272]
[1673639667384,24.63551731,1419.7,1419.5,3.60633272]
[1673639668283,26.21884828,1419.7,1419.5,3.60633272]
[1673639668470,24.63551731,1419.7,1419.5,3.60633272]
[1673639668815,10.54803731,1419.7,1419.5,3.60633272]
[1673639669005,10.54803731,1419.7,1419.5,10.65098272]
[1673639669006,0.066,1419.7,1419.5,10.65098272]
[1673639669181,16.72513662,1419.8,1419.6,3.60633272]
[1673639669182,2.70409662,1419.8,1419.6,3.60633272]
[1673639669390,1.05476565,1419.8,1419.6,3.60633272]
[1673639669671,6.78247379,1419.9,1419.7,21.13122]
[1673639669861,3.38062803,1419.9,1419.7,21.19722]
[1673639670035,2.78632803,1419.9,1419.7,21.19722]
[1673639671174,2.78632803,1419.9,1419.7,17.75981272]
[1673639671441,2.78632803,1419.9,1419.7,10.71607272]
[1673639671671,2.78632803,1419.9,1419.7,17.75981272]
[1673639672177,23.91455803,1419.9,1419.7,0.066]
[1673639672351,2.3914558,1419.8,1419.5,33.13353]
[1673639672700,1.05476565,1419.8,1419.6,3.60633272]
[1673639673226,8.09801565,1419.8,1419.6,3.60633272]
[1673639673383,22.25051565,1419.8,1419.5,8.0139]
[1673639673594,15.20726565,1419.8,1419.5,11.62023272]
[1673639673805,18.36258045,1419.8,1419.5,18.66495272]
[1673639674234,18.36258045,1419.8,1419.5,8.0139]
[1673639674477,25.40583045,1419.8,1419.5,8.0139]
[1673639674702,26.98916142,1419.8,1419.5,8.0139]
[1673639675333,26.98916142,1419.8,1419.5,0.066]
[1673639675491,9.74284614,1419.7,1419.4,24.20143]
[1673639675696,9.80884614,1419.7,1419.4,27.80776272]
[1673639675981,9.80884614,1419.7,1419.4,13.71736272]
[1673639676137,10.86361179,1419.7,1419.4,13.71736272]
[1673639676350,17.90754179,1419.7,1419.4,13.71736272]
[1673639676591,17.90754179,1419.7,1419.4,16.19486068]
[1673639676903,17.90754179,1419.7,1419.4,13.71736272]
[1673639677935,10.86361179,1419.7,1419.4,13.71736272]
[1673639678129,12.17720809,1419.7,1419.4,13.71736272]
[1673639678533,1.05476565,1419.6,1419.4,13.71736272]
[1673639679687,1.05255755,1419.6,1419.4,13.71736272]
[1673639679922,1.05255755,1419.6,1419.4,0.066]
[1673639679923,17.06331155,1419.6,1419.4,0.066]
[1673639680221,1.58333097,1419.5,1419.1,1.11406584]
[1673639680352,1.58333097,1419.5,1419.2,1.74802703]
[1673639680353,20.32061613,1419.5,1419.2,1.74802703]
[1673639680548,20.32061613,1419.5,1419.0,21.65197657]
[1673639680549,2.03206161,1419.4,1419.0,21.65197657]
[1673639680762,2.03206161,1419.4,1419.1,1.74819369]
[1673639680763,21.13746,1419.3,1419.1,1.74819369]
[1673639680966,21.20346,1419.3,1419.1,1.74819369]
[1673639681233,23.80454526,1419.3,1419.1,1.74819369]
[1673639681403,24.33304526,1419.3,1419.1,1.74819369]
[1673639682019,23.80454526,1419.3,1419.1,1.74819369]
[1673639682468,23.80454526,1419.3,1419.0,9.981]
[1673639683100,25.38787623,1419.3,1419.0,0.066]
[1673639683267,14.09342,1419.1,1418.9,0.066]
[1673639683475,14.09342,1419.1,1418.8,1.10926507]
[1673639683476,14.15942,1419.1,1418.8,1.10926507]
[1673639683680,14.15942,1419.1,1418.8,0.06119923]
[1673639683681,21.20613,1419.1,1418.8,0.06119923]
[1673639683934,8.463342,1419.0,1418.8,0.06119923]
[1673639684103,15.576742,1419.0,1418.8,0.06119923]
[1673639684313,8.529342,1419.0,1418.8,0.06119923]
[1673639684781,15.576552,1419.0,1418.8,0.06119923]
[1673639684990,8.6053652,1418.9,1418.8,0.06119923]
[1673639685151,8.6713652,1418.9,1418.8,0.06119923]
[1673639685395,15.7190752,1418.9,1418.8,0.06119923]
[1673639686028,1.6236552,1418.9,1418.8,1.80960264]
[1673639686359,7.11321,1419.0,1418.8,1.80960264]
[1673639686526,7.11321,1419.0,1418.8,0.06119923]
[1673639686953,14.16074,1419.0,1418.8,0.06119923]
[1673639687917,7.11321,1419.0,1418.8,0.06119923]
[1673639688250,14.16042,1419.0,1418.8,0.06119923]
[1673639688424,10.278026,1419.0,1418.8,0.06119923]
[1673639690202,0.066,1419.0,1418.8,3.66753195]
[1673639690545,0.066,1419.1,1418.8,17.76375195]
[1673639690767,8.3771,1419.2,1418.8,24.87795195]
[1673639690978,8.3771,1419.2,1418.8,21.15146202]
[1673639691150,29.51594,1419.2,1418.8,15.28726202]
[1673639691679,29.51594,1419.2,1418.8,8.23924202]
[1673639692213,29.51594,1419.2,1418.8,15.28736202]
[1673639692416,29.51594,1419.2,1418.8,4.91753195]
[1673639692721,29.51594,1419.2,1418.8,4.85153195]
[1673639693302,29.51594,1419.2,1418.8,8.29337923]
[1673639693474,30.70794,1419.2,1418.8,0.12719923]
[1673639693837,21.14163,1419.0,1418.8,0.06119923]
[1673639694051,21.20763,1419.0,1418.8,0.06119923]
[1673639699872,14.16042,1419.0,1418.8,0.06119923]
[1673639700121,21.20763,1419.0,1418.8,0.06119923]
[1673639700550,24.3930244,1419.0,1418.8,0.06119923]
[1673639701610,17.3458144,1419.0,1418.8,0.06119923]
[1673639702032,24.3930244,1419.0,1418.8,0.06119923]
[1673639702196,17.3458144,1419.0,1418.8,0.06119923]
[1673639702402,24.3930244,1419.0,1418.8,0.06119923]
[1673639702613,2.43930244,1418.9,1418.8,0.05872719]
[1673639702870,16.53472244,1418.9,1418.8,0.05872719]
[1673639703037,16.60072244,1418.9,1418.8,0.05872719]
[1673639703260,7.11371,1418.9,1418.8,0.05872719]
[1673639704194,1.149,1418.9,1418.8,0.05872719]
[1673639704404,29.24532,1419.0,1418.8,0.05872719]
[1673639706405,28.99532,1419.0,1418.8,0.05872719]
[1673639707617,1.6116,1418.9,1418.8,0.05872719]
[1673639707767,29.626622,1418.9,1418.8,0.05872719]
[1673639708085,28.500622,1418.9,1418.8,0.05872719]
[1673639708842,26.000622,1418.9,1418.8,0.05872719]
[1673639710415,18.952912,1418.9,1418.8,0.05872719]
[1673639710635,4.857492,1418.9,1418.8,0.05872719]
[1673639710809,4.791492,1418.9,1418.8,0.05872719]
[1673639711455,4.791492,1418.9,1418.8,7.10692719]
[1673639711709,1.083,1418.9,1418.8,0.12472719]
[1673639711859,1.083,1418.9,1418.8,0.05872719]
[1673639712071,32.16345,1419.0,1418.8,0.05872719]
[1673639712699,31.63485,1419.0,1418.8,0.05872719]
[1673639713757,17.54,1419.0,1418.8,0.05872719]
[1673639714015,0.5286,1418.9,1418.8,22.62846878]
[1673639714189,17.8865,1419.2,1418.8,27.4928015]
[1673639714333,17.9525,1419.2,1418.8,35.4084015]
[1673639714542,8.0584,1419.2,1418.8,35.4084015]
[1673639714884,8.5869,1419.2,1419.0,7.04721]
[1673639715113,0.5945,1419.2,1419.0,21.20763]
[1673639715438,0.5285,1419.2,1419.0,21.20763]
[1673639716226,0.4785,1419.2,1419.0,21.20763]
[1673639717586,0.4785,1419.2,1419.0,14.16042]
[1673639718473,0.4785,1419.2,1419.0,0.066]
[1673639718694,7.52474,1419.2,1418.9,13.08522008]
[1673639718845,0.5445,1419.2,1418.9,28.36864008]
[1673639719058,0.4785,1419.2,1418.9,28.36864008]
[1673639719293,0.4785,1419.2,1418.9,14.27322008]
[1673639719510,0.4785,1419.2,1418.9,25.93768015]
[1673639719737,0.4785,1419.2,1418.9,28.36864008]
[1673639720109,22.66893807,1419.2,1418.9,3.60684015]
[1673639720319,22.66893807,1419.2,1418.8,16.55261646]
[1673639720320,24.49160891,1419.2,1418.8,16.55261646]
[1673639720760,24.49160891,1419.2,1418.8,23.60076646]
[1673639720950,24.49160891,1419.2,1418.9,1.74840805]
[1673639721280,7.04721,1419.0,1418.8,15.50455062]
[1673639721489,7.11321,1419.0,1418.8,7.58895062]
[1673639721722,7.11321,1419.0,1418.8,5.1564915]
[1673639722151,0.066,1419.0,1418.8,6.20455734]
[1673639722367,7.04723,1419.0,1418.8,8.63701646]
[1673639722528,0.066,1419.0,1418.8,13.25273734]
[1673639722733,15.21137807,1419.1,1418.8,15.68519646]
[1673639722951,0.066,1419.1,1418.9,6.92325171]
[1673639723280,15.21044807,1419.2,1419.0,3.60633272]
[1673639723626,14.09342,1419.1,1419.0,3.60633272]
[1673639723801,21.20613,1419.1,1419.0,3.60633272]
[1673639724006,21.20613,1419.1,1418.9,0.066]
[1673639724231,21.20613,1419.1,1418.9,3.60633272]
[1673639724464,22.25780807,1419.1,1418.9,3.60633272]
[1673639725064,21.20613,1419.1,1418.9,3.60633272]
[1673639725728,22.25780807,1419.1,1418.9,3.60633272]
[1673639726129,21.20613,1419.1,1418.9,3.60633272]
[1673639727164,22.25780807,1419.1,1418.9,3.60633272]
[1673639727376,21.20613,1419.1,1418.9,3.60633272]
[1673639728357,22.25780807,1419.1,1418.9,3.60633272]
[1673639731266,22.25780807,1419.1,1419.0,3.60633272]
[1673639731267,0.066,1419.1,1419.0,3.60633272]
[1673639731490,10.84016195,1419.3,1419.0,27.68417391]
[1673639731664,1.81956195,1419.3,1419.0,26.00196272]
[1673639731977,1.58017807,1419.3,1419.0,26.00196272]
[1673639732204,1.05167807,1419.3,1419.1,16.69329627]
[1673639732410,1.05167807,1419.3,1419.1,16.75929627]
[1673639733077,1.05167807,1419.3,1419.1,9.71260627]
[1673639733495,1.05167807,1419.3,1419.1,0.066]
[1673639733668,22.18890807,1419.3,1418.9,1.11406584]
[1673639733891,24.01159195,1419.3,1418.9,6.60633272]
[1673639734238,24.01159195,1419.3,1418.9,6.67233272]
[1673639734239,28.21324794,1419.3,1418.9,6.67233272]
[1673639734633,28.21324794,1419.3,1418.9,13.72004272]
[1673639734839,24.01159195,1419.3,1418.9,16.15262345]
[1673639735047,24.01159195,1419.3,1418.9,23.20033345]
[1673639735290,22.42826098,1419.3,1418.9,24.24839929]
[1673639736206,22.42826098,1419.3,1419.0,1.7482524]
[1673639736581,22.42826098,1419.3,1418.9,24.24839929]
[1673639736785,22.42826098,1419.3,1419.0,1.74824803]
[1673639737145,15.20911807,1419.3,1419.0,5.35458075]
[1673639737493,0.066,1419.3,1419.0,24.81383272]
[1673639737667,11.19424523,1419.4,1419.0,27.24641345]
[1673639737993,0.066,1419.4,1419.2,22.33066]
[1673639738366,11.51371426,1419.5,1419.2,22.39666]
[1673639738670,1.81931426,1419.5,1419.2,26.00299272]
[1673639738885,41.82183893,1419.6,1419.3,1.192]
[1673639738886,41.35680904,1419.6,1419.3,1.192]
[1673639739040,10.98680904,1419.6,1419.3,13.86033044]
[1673639739250,9.40347807,1419.6,1419.3,16.42633044]
[1673639739480,8.87507807,1419.6,1419.3,16.42633044]
[1673639739684,8.87507807,1419.6,1419.3,6.88087044]
[1673639740004,17.50269904,1419.6,1419.3,6.88087044]
[1673639740236,17.50269904,1419.6,1419.3,4.86433272]
[1673639740237,24.71976639,1419.6,1419.3,4.86433272]
[1673639740407,1.05167807,1419.5,1419.3,3.60633272]
[1673639740622,7.04523,1419.4,1419.3,3.60633272]
[1673639740988,0.066,1419.4,1419.3,3.60633272]
[1673639741295,7.04523,1419.4,1419.3,3.60633272]
[1673639741456,7.11123,1419.4,1419.3,3.60633272]
[1673639742085,14.15646,1419.4,1419.2,1.25463116]
[1673639742340,9.33653681,1419.4,1419.1,10.3095]
[1673639742552,7.11123,1419.4,1419.1,13.91583272]
[1673639742760,22.25336807,1419.4,1419.1,10.3095]
[1673639742993,24.36519904,1419.4,1419.1,10.3095]
[1673639743294,9.4824599,1419.3,1419.1,10.3095]
[1673639743453,9.5484599,1419.3,1419.1,10.3095]
[1673639743925,9.5484599,1419.3,1419.1,0.066]
[1673639744124,9.5484599,1419.3,1419.0,8.2356]
[1673639744304,16.5943999,1419.3,1419.0,11.84193272]
[1673639744518,16.5943999,1419.3,1419.0,3.67233272]
[1673639744732,23.6403399,1419.3,1419.0,3.60633272]
[1673639745279,24.69201797,1419.3,1419.0,3.60633272]
[1673639747386,24.69201797,1419.3,1418.9,20.8435]
[1673639747387,2.4692018,1419.2,1418.9,20.8435]
[1673639747555,21.14013,1419.1,1418.9,9.9599]
[1673639747764,17.33015999,1419.1,1418.9,9.9599]
[1673639748194,17.33015999,1419.1,1418.9,0.064]
[1673639748403,17.33015999,1419.1,1418.8,3.05872719]
[1673639748710,17.33015999,1419.1,1418.8,6.66505991]
[1673639749045,17.33015999,1419.1,1418.8,6.73105991]
[1673639749245,14.15942,1419.1,1418.8,9.16209602]
[1673639749448,7.11271,1419.1,1418.8,16.21025602]
[1673639749671,7.11271,1419.1,1418.9,1.74831038]
[1673639749672,0.066,1419.1,1418.9,1.74831038]
[1673639750018,11.12843797,1419.3,1419.0,7.04717]
[1673639750251,1.1128438,1419.2,1419.0,7.11317]
[1673639751028,1.1128438,1419.2,1419.0,7.113]
[1673639751334,1.1128438,1419.2,1419.0,14.16021]
[1673639751560,1.64617807,1419.3,1419.0,21.20742]
[1673639751759,1.05167807,1419.3,1419.0,21.20742]
[1673639751997,35.32469904,1419.4,1419.0,27.24625296]
[1673639752170,21.40675604,1419.4,1419.1,1.185]
[1673639752390,26.16722807,1419.4,1419.2,1.188]
[1673639752701,0.066,1419.4,1419.2,15.28044]
[1673639752912,3.16340904,1419.5,1419.2,22.39266]
[1673639753176,2.63500904,1419.5,1419.2,25.63271053]
[1673639753511,2.80779035,1419.5,1419.2,29.23904325]
[1673639753650,2.80779035,1419.5,1419.3,7.98285772]
[1673639753865,2.80779035,1419.5,1419.3,8.04885772]
[1673639755116,1.22445938,1419.5,1419.3,8.04885772]
[1673639755333,2.80779035,1419.5,1419.3,8.04885772]
[1673639755575,2.80779035,1419.5,1419.3,36.51441054]
[1673639755576,1.05167807,1419.5,1419.3,36.51441054]
[1673639755794,0.5284,1419.5,1419.3,37.70641054]
[1673639755964,39.60987807,1419.6,1419.4,1.185]
[1673639755965,0.066,1419.6,1419.4,1.185]
[1673639756346,13.21560904,1419.7,1419.5,28.17892]
[1673639756486,13.21560904,1419.7,1419.5,28.24492]
[1673639756487,1.11767807,1419.7,1419.5,28.24492]
[1673639756699,1.05167807,1419.7,1419.5,21.20019]
[1673639757029,2.63500904,1419.7,1419.5,7.11073]
[1673639757281,1.05167807,1419.7,1419.5,7.11073]
[1673639757798,1.05167807,1419.7,1419.5,0.066]
[1673639757962,1.05167807,1419.7,1419.4,22.38601]
[1673639758176,1.05167807,1419.7,1419.4,19.81565213]
[1673639758441,8.09546807,1419.7,1419.4,12.77071213]
[1673639758596,8.16146807,1419.7,1419.4,12.77071213]
[1673639758799,8.16146807,1419.7,1419.4,19.81594213]
[1673639759064,8.16146807,1419.7,1419.4,19.8129791]
[1673639759472,8.16146807,1419.7,1419.4,12.7677491]
[1673639759686,8.16146807,1419.7,1419.4,5.7228091]
[1673639759898,15.20525807,1419.7,1419.4,11.89958969]
[1673639761035,15.37788626,1419.7,1419.4,11.89958969]
[1673639761280,15.20525807,1419.7,1419.4,11.89958969]
[1673639762397,24.00500723,1419.7,1419.4,4.85436969]
[1673639762613,1.05167807,1419.6,1419.3,16.10605772]
[1673639762948,21.13419,1419.5,1419.3,0.066]
[1673639763168,15.20713807,1419.5,1419.2,9.743]
[1673639763316,10.65108478,1419.5,1419.2,13.34933272]
[1673639763526,3.60635478,1419.5,1419.2,20.39549272]
[1673639763737,3.54035478,1419.5,1419.2,20.39549272]
[1673639765269,3.54035478,1419.5,1419.2,27.44171272]
[1673639765414,10.58510478,1419.5,1419.2,27.44171272]
[1673639765626,10.65110478,1419.5,1419.2,27.44171272]
[1673639766260,0.87334565,1419.4,1419.2,27.44171272]
[1673639766529,3.10602372,1419.4,1419.2,0.066]
[1673639766738,21.13716,1419.3,1418.9,17.3576]
[1673639766995,21.13716,1419.3,1418.9,21.02993272]
[1673639766996,22.25483807,1419.3,1418.9,21.02993272]
[1673639768206,22.42754763,1419.3,1418.9,21.02993272]
[1673639768423,2.24275476,1419.2,1418.9,21.02993272]
[1673639768745,16.33550476,1419.2,1418.9,21.02993272]
[1673639768956,16.40150476,1419.2,1418.9,21.02993272]
[1673639769112,23.44803476,1419.2,1418.9,13.43143272]
[1673639770843,16.40150476,1419.2,1418.9,13.43143272]
[1673639771221,1.64015048,1419.1,1418.9,13.43143272]
[1673639771642,1.64015048,1419.1,1418.9,3.67233272]
[1673639771901,1.64015048,1419.1,1418.9,3.60633272]
[1673639772371,8.68690048,1419.1,1418.9,3.60633272]
[1673639772586,8.75290048,1419.1,1418.9,3.60633272]
[1673639773117,1.70615048,1419.1,1418.9,3.60633272]
[1673639773333,7.11222,1419.2,1418.9,3.60633272]
[1673639773643,14.15844,1419.2,1418.9,3.60633272]
[1673639774544,21.73316,1419.2,1418.9,3.60633272]
[1673639774762,14.68694,1419.2,1418.9,3.60633272]
[1673639775127,21.73316,1419.2,1418.9,3.60633272]
[1673639775471,2.173316,1419.1,1418.9,3.60633272]
[1673639776017,0.5945,1419.2,1418.9,6.10633272]
[1673639776191,0.5285,1419.2,1419.0,4.79833272]
[1673639776389,10.91260904,1419.4,1419.0,4.79833272]
[1673639776390,9.92377807,1419.4,1419.0,4.79833272]
[1673639776595,8.8721,1419.4,1419.1,21.13986]
[1673639776857,8.8721,1419.4,1419.2,4.79033272]
[1673639776858,0.5945,1419.4,1419.2,4.79033272]
[1673639777019,9.8668,1419.5,1419.3,21.13716]
[1673639777230,0.066,1419.5,1419.3,22.39516]
[1673639777482,9.67613645,1419.6,1419.3,22.39516]
[1673639777688,9.67613645,1419.6,1419.3,15.34944]
[1673639777897,1.64607807,1419.6,1419.3,15.34944]
[1673639778264,1.58007807,1419.6,1419.3,15.34944]
[1673639779128,3.16340904,1419.6,1419.3,15.34944]
[1673639779483,1.05167807,1419.5,1419.3,1.258]
[1673639779644,1.05167807,1419.5,1419.3,1.192]
[1673639780232,8.09644807,1419.5,1419.3,1.192]
[1673639780439,8.16244807,1419.5,1419.3,1.192]
[1673639781076,8.16244807,1419.5,1419.2,28.60185199]
[1673639782149,1.11767807,1419.5,1419.2,28.60185199]
[1673639782292,1.05167807,1419.5,1419.2,28.60185199]
[1673639782512,17.31792904,1419.6,1419.2,28.60185199]
[1673639782877,1.05167807,1419.5,1419.2,28.60185199]
[1673639783662,1.05367807,1419.5,1419.2,28.59985199]
[1673639783874,1.05167807,1419.5,1419.2,28.60185199]
[1673639784334,3.22940904,1419.6,1419.3,3.60633272]
[1673639784533,3.22940904,1419.6,1419.4,7.04523]
[1673639784534,3.16340904,1419.6,1419.4,7.04523]
[1673639784746,1.58007807,1419.6,1419.4,21.20169]
[1673639785129,11.20480904,1419.7,1419.4,24.50622327]
[1673639785343,10.67650904,1419.7,1419.4,25.69622327]
[1673639785589,1.11767807,1419.7,1419.4,29.30255599]
[1673639785799,1.05167807,1419.7,1419.4,29.30255599]
[1673639786141,1.05167807,1419.7,1419.6,7.04423]
[1673639786300,1.05167807,1419.7,1419.6,7.11023]
[1673639787106,1.05167807,1419.7,1419.6,0.066]
[1673639787288,1.05167807,1419.7,1419.5,24.80596272]
[1673639787755,1.05167807,1419.7,1419.5,17.76128272]
[1673639788946,1.04792164,1419.7,1419.5,20.69137532]
[1673639789157,1.04792164,1419.7,1419.5,13.64684532]
[1673639790326,1.04792164,1419.7,1419.5,20.69157532]
[1673639790705,1.04792164,1419.7,1419.5,13.64684532]
[1673639790914,1.04792164,1419.7,1419.5,20.69157532]
[1673639792789,1.04792164,1419.7,1419.5,13.64684532]
[1673639793013,1.04792164,1419.7,1419.5,17.76148272]
[1673639793159,1.04792164,1419.7,1419.5,10.71675272]
[1673639793811,2.63125261,1419.7,1419.5,0.066]
[1673639794117,2.63125261,1419.7,1419.3,18.3899]
[1673639794118,22.71462097,1419.7,1419.3,18.3899]
[1673639794346,22.71462097,1419.7,1419.3,20.80423272]
[1673639794347,2.2714621,1419.6,1419.3,20.80423272]
[1673639794524,3.85479307,1419.6,1419.3,0.066]
[1673639794735,3.85479307,1419.6,1419.1,19.1052]
[1673639794946,21.51966931,1419.5,1419.2,3.60633272]
[1673639795265,21.58566931,1419.5,1419.2,3.60633272]
[1673639796123,21.58566931,1419.5,1419.1,19.1712]
[1673639796362,21.58566931,1419.5,1419.1,22.77753272]
[1673639797063,21.58566931,1419.5,1419.1,29.82412272]
[1673639799091,22.63929946,1419.5,1419.1,29.82412272]